[Event "*** Titled Tuesday Blitz"]
[Site "Chess.com"]
[Date "2020.04.28"]
[Round "9"]
[White "Boudicca64"]
[Black "top_bu_tz"]
[Result "1-0"]
[WhiteElo "1921"]
[BlackElo "2071"]
[TimeControl "180+1"]
[EndTime "11:46:28 PDT"]
[Termination "Boudicca64 won on time"]

1. d4 {[%clk 0:02:03.3]} 1... Nf6 {[%clk 0:02:50.8]} 2. c4 {[%clk 0:02:03.4]}
2... g6 {[%clk 0:02:47.7]} 3. Nc3 {[%clk 0:02:03.2]} 3... d5 {[%clk 0:02:43.5]}
4. Bf4 {[%clk 0:02:02.7]} 4... Bg7 {[%clk 0:02:42.9]} 5. e3 {[%clk 0:02:03.2]}
5... c5 {[%clk 0:02:43.2]} 6. dxc5 {[%clk 0:02:02]} 6... Qa5 {[%clk 0:02:42.1]}
7. cxd5 {[%clk 0:02:01.9]} 7... Nxd5 {[%clk 0:02:40.6]} 8. Qa4+ {[%clk 0:01:42]}
8... Qxa4 {[%clk 0:02:31.6]} 9. Nxa4 {[%clk 0:01:42.9]} 9... Bd7 {[%clk
0:02:15.9]} 10. Bxb8 {[%clk 0:01:21.2]} 10... Rxb8 {[%clk 0:02:03.4]} 11. Bc4
{[%clk 0:01:07.8]} 11... Nb4 {[%clk 0:00:59.3]} 12. Bb3 {[%clk 0:00:43.2]} 12...
Nd3+ {[%clk 0:00:51.2]} 13. Kd2 {[%clk 0:00:37.9]} 13... Nxf2 {[%clk 0:00:41.9]}
14. Nf3 {[%clk 0:00:36.3]} 14... Nxh1 {[%clk 0:00:39]} 15. Rxh1 {[%clk
0:00:37.2]} 15... O-O {[%clk 0:00:35.8]} 16. Nc3 {[%clk 0:00:29.6]} 16... Bc6
{[%clk 0:00:34.5]} 17. e4 {[%clk 0:00:26.1]} 17... Rfd8+ {[%clk 0:00:32.9]} 18.
Ke3 {[%clk 0:00:26.3]} 18... Bh6+ {[%clk 0:00:30.1]} 19. Ke2 {[%clk 0:00:25]}
19... e6 {[%clk 0:00:27.1]} 20. Bc2 {[%clk 0:00:20.6]} 20... Bf8 {[%clk
0:00:26.8]} 21. b4 {[%clk 0:00:20.9]} 21... Bg7 {[%clk 0:00:22.1]} 22. Nd1
{[%clk 0:00:17.7]} 22... Bb5+ {[%clk 0:00:22.2]} 23. Ke3 {[%clk 0:00:18.1]}
23... Bh6+ {[%clk 0:00:16]} 24. Kf2 {[%clk 0:00:18.7]} 24... b6 {[%clk
0:00:14.7]} 25. a4 {[%clk 0:00:19.3]} 25... Bc4 {[%clk 0:00:11.3]} 26. Nb2
{[%clk 0:00:18.5]} 26... b5 {[%clk 0:00:10.7]} 27. Nxc4 {[%clk 0:00:17.8]} 27...
bxc4 {[%clk 0:00:11.6]} 28. b5 {[%clk 0:00:17.6]} 28... a6 {[%clk 0:00:10.8]}
29. Rb1 {[%clk 0:00:16.8]} 29... Bf8 {[%clk 0:00:08]} 30. c6 {[%clk 0:00:11.6]}
30... Rdc8 {[%clk 0:00:07.4]} 31. Ne5 {[%clk 0:00:10.7]} 31... Bc5+ {[%clk
0:00:07.3]} 32. Ke2 {[%clk 0:00:10.6]} 32... axb5 {[%clk 0:00:05.4]} 33. axb5
{[%clk 0:00:11.5]} 33... Rc7 {[%clk 0:00:05.1]} 34. Nd7 {[%clk 0:00:11.6]} 34...
Ba7 {[%clk 0:00:03.4]} 35. Nxb8 {[%clk 0:00:11.3]} 35... Bxb8 {[%clk 0:00:04.3]}
36. Ba4 {[%clk 0:00:10.5]} 36... Rc8 {[%clk 0:00:02.2]} 37. b6 {[%clk
0:00:10.6]} 37... Be5 {[%clk 0:00:01.6]} 38. c7 {[%clk 0:00:08.5]} 1-0

[Event "*** Titled Tuesday Blitz"]
[Site "Chess.com"]
[Date "2020.04.28"]
[Round "9"]
[White "donotreadit"]
[Black "Sanan_Sjugirov"]
[Result "1-0"]
[WhiteElo "2712"]
[BlackElo "2842"]
[TimeControl "180+1"]
[EndTime "11:46:29 PDT"]
[Termination "donotreadit won on time"]

1. Nf3 {[%clk 0:02:56]} 1... d5 {[%clk 0:02:59.4]} 2. b3 {[%clk 0:02:54.9]} 2...
Bg4 {[%clk 0:02:58]} 3. Bb2 {[%clk 0:02:54.4]} 3... Bxf3 {[%clk 0:02:56.6]} 4.
exf3 {[%clk 0:02:54.3]} 4... e6 {[%clk 0:02:56]} 5. g3 {[%clk 0:02:54.8]} 5...
Nd7 {[%clk 0:02:53.2]} 6. f4 {[%clk 0:02:54.5]} 6... Ngf6 {[%clk 0:02:53.3]} 7.
Bg2 {[%clk 0:02:54.7]} 7... g6 {[%clk 0:02:53.3]} 8. O-O {[%clk 0:02:55.3]} 8...
Bg7 {[%clk 0:02:53.5]} 9. c4 {[%clk 0:02:55.9]} 9... O-O {[%clk 0:02:51.6]} 10.
d3 {[%clk 0:02:54]} 10... c6 {[%clk 0:02:50.6]} 11. Nd2 {[%clk 0:02:53.6]} 11...
Ne8 {[%clk 0:02:45.3]} 12. d4 {[%clk 0:02:53.7]} 12... Nd6 {[%clk 0:02:43.4]}
13. Rc1 {[%clk 0:02:53.6]} 13... Nf5 {[%clk 0:02:31]} 14. Nf3 {[%clk 0:02:53.2]}
14... dxc4 {[%clk 0:02:27.2]} 15. bxc4 {[%clk 0:02:45.8]} 15... c5 {[%clk
0:02:27.4]} 16. Ne5 {[%clk 0:02:42.6]} 16... Qc7 {[%clk 0:01:44.9]} 17. d5
{[%clk 0:01:48.2]} 17... Nxe5 {[%clk 0:01:39.4]} 18. fxe5 {[%clk 0:01:48.5]}
18... Bxe5 {[%clk 0:01:35.9]} 19. Bxe5 {[%clk 0:01:49.4]} 19... Qxe5 {[%clk
0:01:36.5]} 20. dxe6 {[%clk 0:01:49.5]} 20... Qxe6 {[%clk 0:01:30.4]} 21. Bxb7
{[%clk 0:01:49.8]} 21... Rab8 {[%clk 0:01:26.7]} 22. Bd5 {[%clk 0:01:50]} 22...
Qf6 {[%clk 0:01:26.5]} 23. Rb1 {[%clk 0:01:46.5]} 23... Nd4 {[%clk 0:01:21.1]}
24. Qd3 {[%clk 0:01:46.4]} 24... Kg7 {[%clk 0:01:14.8]} 25. h4 {[%clk
0:01:43.5]} 25... Rfe8 {[%clk 0:01:07.7]} 26. Rxb8 {[%clk 0:01:30.8]} 26... Rxb8
{[%clk 0:01:08.6]} 27. Rb1 {[%clk 0:01:29.5]} 27... Rb6 {[%clk 0:01:02.7]} 28.
Kg2 {[%clk 0:01:24.4]} 28... h6 {[%clk 0:01:00]} 29. Qe4 {[%clk 0:01:19.1]}
29... Qd6 {[%clk 0:00:26.8]} 30. Qe8 {[%clk 0:01:02.5]} 30... Qf6 {[%clk
0:00:24.3]} 31. Rxb6 {[%clk 0:01:01.8]} 31... axb6 {[%clk 0:00:24.2]} 32. Qd7
{[%clk 0:01:02.4]} 32... g5 {[%clk 0:00:22.2]} 33. h5 {[%clk 0:01:01]} 33... Nf5
{[%clk 0:00:18.6]} 34. Qc7 {[%clk 0:00:55.8]} 34... Ne7 {[%clk 0:00:14.9]} 35.
a4 {[%clk 0:00:51.2]} 35... Nf5 {[%clk 0:00:08]} 36. a5 {[%clk 0:00:37.8]} 36...
bxa5 {[%clk 0:00:08.9]} 37. Qxc5 {[%clk 0:00:38.1]} 37... a4 {[%clk 0:00:05.3]}
38. Qa7 {[%clk 0:00:37.1]} 38... g4 {[%clk 0:00:02.5]} 39. Qxa4 {[%clk
0:00:33.1]} 39... Qb2 {[%clk 0:00:01.7]} 40. Qa7 {[%clk 0:00:32.4]} 40... Qf6
{[%clk 0:00:01.8]} 41. Qd7 {[%clk 0:00:28.5]} 41... Kf8 {[%clk 0:00:01.8]} 42.
c5 {[%clk 0:00:28.3]} 42... Ne7 {[%clk 0:00:01.1]} 43. c6 {[%clk 0:00:23.8]} 1-0

[Event "*** Titled Tuesday Blitz"]
[Site "Chess.com"]
[Date "2020.04.28"]
[Round "9"]
[White "zmeeed67"]
[Black "Ranindu2003"]
[Result "1-0"]
[WhiteElo "2399"]
[BlackElo "2514"]
[TimeControl "180+1"]
[EndTime "11:46:29 PDT"]
[Termination "zmeeed67 won by resignation"]

1. d4 {[%clk 0:03:00.9]} 1... Nf6 {[%clk 0:02:59.1]} 2. c4 {[%clk 0:03:00.2]}
2... e6 {[%clk 0:02:59.4]} 3. Nc3 {[%clk 0:03:00.7]} 3... d5 {[%clk 0:02:58.7]}
4. cxd5 {[%clk 0:03:01]} 4... exd5 {[%clk 0:02:59.6]} 5. Bg5 {[%clk 0:03:00.8]}
5... Be7 {[%clk 0:02:59]} 6. e3 {[%clk 0:03:00.5]} 6... c6 {[%clk 0:02:59.4]} 7.
Bd3 {[%clk 0:03:00.6]} 7... Nbd7 {[%clk 0:02:57.5]} 8. Nge2 {[%clk 0:03:00.9]}
8... O-O {[%clk 0:02:54]} 9. O-O {[%clk 0:03:00.4]} 9... h6 {[%clk 0:02:52.1]}
10. Bh4 {[%clk 0:02:59.3]} 10... Ne4 {[%clk 0:02:49.2]} 11. Bxe7 {[%clk
0:02:58.8]} 11... Qxe7 {[%clk 0:02:48.9]} 12. Bxe4 {[%clk 0:02:59.7]} 12... dxe4
{[%clk 0:02:47.8]} 13. Qc2 {[%clk 0:02:56.2]} 13... Nf6 {[%clk 0:02:46.2]} 14.
Ng3 {[%clk 0:02:53.5]} 14... Re8 {[%clk 0:02:45.8]} 15. Rab1 {[%clk 0:02:53]}
15... a5 {[%clk 0:02:29.8]} 16. a3 {[%clk 0:02:51.4]} 16... Kh8 {[%clk
0:02:06.9]} 17. b4 {[%clk 0:02:46.8]} 17... axb4 {[%clk 0:02:04.9]} 18. axb4
{[%clk 0:02:47.7]} 18... Be6 {[%clk 0:01:50.8]} 19. Ncxe4 {[%clk 0:02:12]} 19...
Ra2 {[%clk 0:01:40.3]} 20. Qd3 {[%clk 0:01:54.9]} 20... Nxe4 {[%clk 0:01:22.1]}
21. Qxe4 {[%clk 0:01:55.8]} 21... Qf6 {[%clk 0:01:21.8]} 22. h3 {[%clk
0:01:36.3]} 22... Rea8 {[%clk 0:01:13.8]} 23. Qe5 {[%clk 0:01:11]} 23... Qg6
{[%clk 0:01:04.1]} 24. Rfc1 {[%clk 0:01:00.3]} 24... Bd5 {[%clk 0:00:55.9]} 25.
e4 {[%clk 0:00:53]} 25... Be6 {[%clk 0:00:49.2]} 26. b5 {[%clk 0:00:44.2]} 26...
Rd2 {[%clk 0:00:30.3]} 27. bxc6 {[%clk 0:00:39.8]} 27... bxc6 {[%clk 0:00:30.8]}
28. Rxc6 {[%clk 0:00:30.9]} 28... Raa2 {[%clk 0:00:30.4]} 29. Rf1 {[%clk
0:00:29.6]} 29... f6 {[%clk 0:00:10.1]} 30. Qxe6 {[%clk 0:00:26.3]} 30... Qg5
{[%clk 0:00:10.1]} 31. Rc8+ {[%clk 0:00:23.9]} 31... Kh7 {[%clk 0:00:10.6]} 32.
Qf5+ {[%clk 0:00:23.8]} 32... Qxf5 {[%clk 0:00:10.8]} 33. Nxf5 {[%clk
0:00:24.7]} 33... g6 {[%clk 0:00:11.2]} 34. Rc7+ {[%clk 0:00:24.7]} 34... Kg8
{[%clk 0:00:10.3]} 35. Rb1 {[%clk 0:00:25.6]} 35... Ra8 {[%clk 0:00:08.3]} 36.
Nxh6+ {[%clk 0:00:25]} 36... Kf8 {[%clk 0:00:08.2]} 37. Rf7+ {[%clk 0:00:24.1]}
37... Ke8 {[%clk 0:00:08.6]} 38. Rh7 {[%clk 0:00:24.6]} 38... Rd8 {[%clk
0:00:03.1]} 39. Rbb7 {[%clk 0:00:23.6]} 1-0

[Event "*** Titled Tuesday Blitz"]
[Site "Chess.com"]
[Date "2020.04.28"]
[Round "9"]
[White "Dr_Thomas_Quilter"]
[Black "harkerchess"]
[Result "1-0"]
[WhiteElo "2221"]
[BlackElo "2020"]
[TimeControl "180+1"]
[EndTime "11:46:29 PDT"]
[Termination "Dr_Thomas_Quilter won by checkmate"]

1. e4 {[%clk 0:03:00.9]} 1... e5 {[%clk 0:02:59.1]} 2. Nf3 {[%clk 0:03:00]} 2...
Nc6 {[%clk 0:02:57.1]} 3. Bc4 {[%clk 0:03:00.2]} 3... Bc5 {[%clk 0:02:54.6]} 4.
c3 {[%clk 0:02:59.8]} 4... Nf6 {[%clk 0:02:53.5]} 5. d3 {[%clk 0:03:00]} 5... h6
{[%clk 0:02:53.3]} 6. b4 {[%clk 0:02:49.7]} 6... Bb6 {[%clk 0:02:50.4]} 7. a4
{[%clk 0:02:49.5]} 7... a6 {[%clk 0:02:45.5]} 8. O-O {[%clk 0:02:48.3]} 8... d6
{[%clk 0:02:44.2]} 9. Nbd2 {[%clk 0:02:47.9]} 9... O-O {[%clk 0:02:42]} 10. Bb3
{[%clk 0:02:48.2]} 10... Be6 {[%clk 0:02:41.2]} 11. Bc2 {[%clk 0:02:47.1]} 11...
Qd7 {[%clk 0:02:38.6]} 12. h3 {[%clk 0:02:34.4]} 12... Bxh3 {[%clk 0:02:26.2]}
13. gxh3 {[%clk 0:02:33.9]} 13... Qxh3 {[%clk 0:02:26.7]} 14. Nh2 {[%clk
0:02:18.3]} 14... Qg3+ {[%clk 0:02:10.6]} 15. Kh1 {[%clk 0:02:16.8]} 15... Bxf2
{[%clk 0:02:11.1]} 16. Qf3 {[%clk 0:02:08.4]} 16... Qxf3+ {[%clk 0:01:56.6]} 17.
Ndxf3 {[%clk 0:02:07.6]} 17... Ba7 {[%clk 0:01:54.7]} 18. Nh4 {[%clk 0:02:02.5]}
18... Nh5 {[%clk 0:01:53.5]} 19. Rf3 {[%clk 0:01:47.5]} 19... Kh7 {[%clk
0:01:40.8]} 20. Be3 {[%clk 0:01:37.9]} 20... Bxe3 {[%clk 0:01:34.7]} 21. Rxe3
{[%clk 0:01:37.8]} 21... Nf4 {[%clk 0:01:32.4]} 22. Rf1 {[%clk 0:01:11.9]} 22...
Ne7 {[%clk 0:01:18.4]} 23. d4 {[%clk 0:01:03.9]} 23... g5 {[%clk 0:01:09]} 24.
Nf5 {[%clk 0:00:45.7]} 24... Nxf5 {[%clk 0:01:03.9]} 25. exf5 {[%clk 0:00:45.6]}
25... f6 {[%clk 0:01:04.4]} 26. Nf3 {[%clk 0:00:36.2]} 26... Nd5 {[%clk
0:00:56.2]} 27. Ree1 {[%clk 0:00:30.3]} 27... Nf4 {[%clk 0:00:55.7]} 28. Rd1
{[%clk 0:00:24.5]} 28... Nd5 {[%clk 0:00:54.2]} 29. dxe5 {[%clk 0:00:24.4]}
29... Ne3 {[%clk 0:00:53.9]} 30. e6 {[%clk 0:00:21.3]} 30... Nxc2 {[%clk
0:00:51.2]} 31. Rd3 {[%clk 0:00:18.3]} 31... Na3 {[%clk 0:00:49.9]} 32. Nd2
{[%clk 0:00:17.6]} 32... b5 {[%clk 0:00:48.5]} 33. Ra1 {[%clk 0:00:16.3]} 33...
Nc4 {[%clk 0:00:47.7]} 34. Nxc4 {[%clk 0:00:16.1]} 34... bxc4 {[%clk 0:00:48.6]}
35. Rd4 {[%clk 0:00:16.4]} 35... Rac8 {[%clk 0:00:38.2]} 36. Rxc4 {[%clk
0:00:16]} 36... Rfe8 {[%clk 0:00:37.2]} 37. Rc6 {[%clk 0:00:14.9]} 37... Kg7
{[%clk 0:00:32.8]} 38. Rxa6 {[%clk 0:00:14.6]} 38... Re7 {[%clk 0:00:32.9]} 39.
Rc6 {[%clk 0:00:12.6]} 39... Kf8 {[%clk 0:00:31.3]} 40. a5 {[%clk 0:00:12.9]}
40... Ke8 {[%clk 0:00:31.4]} 41. a6 {[%clk 0:00:12.3]} 41... Kd8 {[%clk
0:00:30.4]} 42. c4 {[%clk 0:00:11.7]} 42... Ra8 {[%clk 0:00:29]} 43. b5 {[%clk
0:00:11.7]} 43... Kc8 {[%clk 0:00:28.1]} 44. b6 {[%clk 0:00:11.1]} 44... Rb8
{[%clk 0:00:24.1]} 45. b7+ {[%clk 0:00:08.9]} 45... Kd8 {[%clk 0:00:22.7]} 46.
a7 {[%clk 0:00:08.9]} 46... Rxb7 {[%clk 0:00:19.1]} 47. a8=Q+ {[%clk 0:00:08.7]}
47... Rb8 {[%clk 0:00:20]} 48. Qxb8# {[%clk 0:00:08.6]} 1-0

[Event "*** Titled Tuesday Blitz"]
[Site "Chess.com"]
[Date "2020.04.28"]
[Round "9"]
[White "Casablanca"]
[Black "Chess_Boxer123"]
[Result "1-0"]
[WhiteElo "2417"]
[BlackElo "2544"]
[TimeControl "180+1"]
[EndTime "11:46:31 PDT"]
[Termination "Casablanca won on time"]

1. d4 {[%clk 0:03:00.9]} 1... d5 {[%clk 0:02:58.7]} 2. c4 {[%clk 0:03:00.7]}
2... c6 {[%clk 0:02:59]} 3. Nc3 {[%clk 0:02:56.2]} 3... Nf6 {[%clk 0:02:58.7]}
4. Nf3 {[%clk 0:02:56.3]} 4... e6 {[%clk 0:02:58.8]} 5. Bg5 {[%clk 0:02:55]}
5... Nbd7 {[%clk 0:02:57.8]} 6. e3 {[%clk 0:02:53.9]} 6... Qa5 {[%clk
0:02:54.4]} 7. Nd2 {[%clk 0:02:53.1]} 7... Bb4 {[%clk 0:02:54.1]} 8. Qc2 {[%clk
0:02:51.8]} 8... O-O {[%clk 0:02:54.2]} 9. Be2 {[%clk 0:02:50.3]} 9... dxc4
{[%clk 0:02:49.7]} 10. Bxf6 {[%clk 0:02:47.8]} 10... Nxf6 {[%clk 0:02:49.8]} 11.
Nxc4 {[%clk 0:02:47]} 11... Qg5 {[%clk 0:02:48]} 12. O-O {[%clk 0:02:39.9]}
12... c5 {[%clk 0:02:48.2]} 13. a3 {[%clk 0:02:38.3]} 13... cxd4 {[%clk
0:02:47.6]} 14. axb4 {[%clk 0:02:36.7]} 14... dxc3 {[%clk 0:02:47.2]} 15. bxc3
{[%clk 0:02:36.3]} 15... Bd7 {[%clk 0:02:47.4]} 16. Rfd1 {[%clk 0:02:00.9]}
16... Bc6 {[%clk 0:02:45.8]} 17. Bf1 {[%clk 0:02:01]} 17... Ng4 {[%clk
0:02:25.4]} 18. h3 {[%clk 0:01:42.4]} 18... Nh6 {[%clk 0:02:22.6]} 19. Na5
{[%clk 0:01:39.6]} 19... Bf3 {[%clk 0:02:17.5]} 20. Rd7 {[%clk 0:01:36.6]} 20...
Nf5 {[%clk 0:02:14.9]} 21. Kh1 {[%clk 0:01:23.9]} 21... Bc6 {[%clk 0:00:33.2]}
22. Nxc6 {[%clk 0:01:16.2]} 22... bxc6 {[%clk 0:00:34.1]} 23. Raxa7 {[%clk
0:01:14.4]} 23... Rxa7 {[%clk 0:00:33.6]} 24. Rxa7 {[%clk 0:01:15.3]} 24... Rd8
{[%clk 0:00:33.3]} 25. Qa4 {[%clk 0:01:00]} 25... h5 {[%clk 0:00:27.7]} 26. Ra8
{[%clk 0:00:59.5]} 26... h4 {[%clk 0:00:19.3]} 27. Qxc6 {[%clk 0:00:55.6]} 27...
g6 {[%clk 0:00:19.5]} 28. b5 {[%clk 0:00:38.4]} 28... Kg7 {[%clk 0:00:18.5]} 29.
Rxd8 {[%clk 0:00:38.1]} 29... Qxd8 {[%clk 0:00:18.6]} 30. b6 {[%clk 0:00:36.3]}
30... Qd2 {[%clk 0:00:17.7]} 31. Kg1 {[%clk 0:00:32.7]} 31... Ng3 {[%clk
0:00:04.4]} 32. fxg3 {[%clk 0:00:24.2]} 32... Qxe3+ {[%clk 0:00:04.5]} 33. Kh1
{[%clk 0:00:24.8]} 33... hxg3 {[%clk 0:00:04.9]} 34. b7 {[%clk 0:00:23]} 34...
Qa7 {[%clk 0:00:03.6]} 35. Qc7 {[%clk 0:00:15.6]} 35... Qf2 {[%clk 0:00:03.5]}
36. Qe5+ {[%clk 0:00:13.3]} 36... f6 {[%clk 0:00:02.7]} 37. Qb5 {[%clk
0:00:12.3]} 1-0

[Event "*** Titled Tuesday Blitz"]
[Site "Chess.com"]
[Date "2020.04.28"]
[Round "9"]
[White "talaicito"]
[Black "Juanovic"]
[Result "1-0"]
[WhiteElo "2276"]
[BlackElo "2154"]
[TimeControl "180+1"]
[EndTime "11:46:32 PDT"]
[Termination "talaicito won by resignation"]

1. d4 {[%clk 0:03:00.9]} 1... d5 {[%clk 0:02:59.8]} 2. Nc3 {[%clk 0:03:00.3]}
2... Nf6 {[%clk 0:02:58.8]} 3. Bf4 {[%clk 0:03:00.3]} 3... c6 {[%clk 0:02:58.1]}
4. e3 {[%clk 0:03:00.5]} 4... Bf5 {[%clk 0:02:57.9]} 5. f3 {[%clk 0:02:59.8]}
5... h6 {[%clk 0:02:57.2]} 6. g4 {[%clk 0:02:59.8]} 6... Bh7 {[%clk 0:02:57.1]}
7. h4 {[%clk 0:02:58.6]} 7... Nbd7 {[%clk 0:02:43.4]} 8. Bd3 {[%clk 0:02:58.6]}
8... Bxd3 {[%clk 0:02:38.8]} 9. Qxd3 {[%clk 0:02:59.5]} 9... Qb6 {[%clk
0:02:34.5]} 10. O-O-O {[%clk 0:02:57.1]} 10... O-O-O {[%clk 0:02:32.9]} 11. Nge2
{[%clk 0:02:54.9]} 11... e6 {[%clk 0:02:32.2]} 12. e4 {[%clk 0:02:47.5]} 12...
dxe4 {[%clk 0:02:23.5]} 13. Nxe4 {[%clk 0:02:46.8]} 13... Nxe4 {[%clk
0:02:20.7]} 14. fxe4 {[%clk 0:02:34.2]} 14... Be7 {[%clk 0:02:14.1]} 15. h5
{[%clk 0:02:10.1]} 15... e5 {[%clk 0:02:12.2]} 16. Be3 {[%clk 0:02:03.3]} 16...
Bg5 {[%clk 0:01:55.9]} 17. Bxg5 {[%clk 0:01:58.9]} 17... hxg5 {[%clk 0:01:56.8]}
18. Qc4 {[%clk 0:01:41.3]} 18... exd4 {[%clk 0:01:39.4]} 19. Qxf7 {[%clk
0:01:25.8]} 19... Ne5 {[%clk 0:01:35.6]} 20. Qe6+ {[%clk 0:01:24.7]} 20... Nd7
{[%clk 0:01:33.2]} 21. Rxd4 {[%clk 0:01:24.6]} 21... Rhe8 {[%clk 0:01:31.2]} 22.
Qf5 {[%clk 0:01:20.3]} 22... Qc5 {[%clk 0:01:26.1]} 23. Rhd1 {[%clk 0:00:51.8]}
23... Qxf5 {[%clk 0:01:20.9]} 24. gxf5 {[%clk 0:00:52.6]} 24... Nf6 {[%clk
0:01:19]} 25. Rxd8+ {[%clk 0:00:33.3]} 25... Rxd8 {[%clk 0:01:19.9]} 26. Rxd8+
{[%clk 0:00:32.8]} 26... Kxd8 {[%clk 0:01:20.8]} 27. Ng3 {[%clk 0:00:32.8]}
27... Ng4 {[%clk 0:01:12]} 28. Kd2 {[%clk 0:00:30.7]} 28... Ke7 {[%clk
0:01:12.5]} 29. Kd3 {[%clk 0:00:30.3]} 29... Kd6 {[%clk 0:01:12.8]} 30. Kd4
{[%clk 0:00:20.9]} 30... c5+ {[%clk 0:01:12.8]} 31. Kc4 {[%clk 0:00:18.1]} 31...
b6 {[%clk 0:01:12.3]} 32. Kb5 {[%clk 0:00:17.7]} 32... Ke5 {[%clk 0:01:06.9]}
33. Ka6 {[%clk 0:00:17.4]} 33... Kf4 {[%clk 0:01:05.7]} 34. Kxa7 {[%clk
0:00:13.5]} 34... Kxg3 {[%clk 0:01:04.9]} 35. Kxb6 {[%clk 0:00:14.4]} 35... c4
{[%clk 0:01:01.2]} 36. a4 {[%clk 0:00:14.5]} 36... Ne5 {[%clk 0:01:02.1]} 37. a5
{[%clk 0:00:14.8]} 37... Kf4 {[%clk 0:00:56.4]} 38. f6 {[%clk 0:00:15.1]} 38...
gxf6 {[%clk 0:00:51.3]} 39. h6 {[%clk 0:00:15.7]} 39... Nf7 {[%clk 0:00:49.9]}
40. h7 {[%clk 0:00:15.3]} 40... g4 {[%clk 0:00:48.6]} 41. a6 {[%clk 0:00:15.9]}
41... g3 {[%clk 0:00:49.2]} 42. a7 {[%clk 0:00:16.4]} 42... g2 {[%clk
0:00:50.1]} 43. a8=Q {[%clk 0:00:16.3]} 43... g1=Q+ {[%clk 0:00:50.1]} 44. Kb5
{[%clk 0:00:14.5]} 44... Qg5+ {[%clk 0:00:26.8]} 45. Kb4 {[%clk 0:00:14.1]}
45... Nd6 {[%clk 0:00:20.5]} 46. h8=Q {[%clk 0:00:09.5]} 46... Qb5+ {[%clk
0:00:19.5]} 47. Ka3 {[%clk 0:00:08.5]} 47... Qc5+ {[%clk 0:00:15.1]} 48. Ka2
{[%clk 0:00:08.7]} 1-0

[Event "*** Titled Tuesday Blitz"]
[Site "Chess.com"]
[Date "2020.04.28"]
[Round "9"]
[White "AthanasiusLefebvre"]
[Black "AndrewDGreen"]
[Result "0-1"]
[WhiteElo "2079"]
[BlackElo "2267"]
[TimeControl "180+1"]
[EndTime "11:46:32 PDT"]
[Termination "AndrewDGreen won on time"]

1. Nf3 {[%clk 0:03:00.9]} 1... c5 {[%clk 0:02:58.4]} 2. d3 {[%clk 0:02:59.7]}
2... g6 {[%clk 0:02:58.4]} 3. g3 {[%clk 0:03:00]} 3... Bg7 {[%clk 0:02:58.9]} 4.
Bg2 {[%clk 0:03:00]} 4... Nc6 {[%clk 0:02:59.5]} 5. c4 {[%clk 0:02:59.8]} 5...
d6 {[%clk 0:02:59]} 6. O-O {[%clk 0:02:59.7]} 6... Bf5 {[%clk 0:02:49.4]} 7. Nc3
{[%clk 0:02:58.5]} 7... Qd7 {[%clk 0:02:49.4]} 8. Re1 {[%clk 0:02:57.5]} 8...
Bh3 {[%clk 0:02:49.3]} 9. Bh1 {[%clk 0:02:57.2]} 9... h5 {[%clk 0:02:49.9]} 10.
Ng5 {[%clk 0:02:46.4]} 10... h4 {[%clk 0:02:49.8]} 11. Nxh3 {[%clk 0:02:45.4]}
11... hxg3 {[%clk 0:02:50.1]} 12. hxg3 {[%clk 0:02:45.3]} 12... Qxh3 {[%clk
0:02:36.9]} 13. Bg2 {[%clk 0:02:45.2]} 13... Qh2+ {[%clk 0:02:24.8]} 14. Kf1
{[%clk 0:02:44.7]} 14... Nf6 {[%clk 0:02:15.9]} 15. e3 {[%clk 0:02:41.4]} 15...
O-O-O {[%clk 0:02:08]} 16. Qf3 {[%clk 0:02:24.9]} 16... Nd7 {[%clk 0:00:34.9]}
17. Nd5 {[%clk 0:01:56]} 17... Nde5 {[%clk 0:00:31.4]} 18. Qd1 {[%clk
0:01:17.2]} 18... e6 {[%clk 0:00:29.3]} 19. Nf4 {[%clk 0:01:11.4]} 19... g5
{[%clk 0:00:28]} 20. Ne2 {[%clk 0:00:59.4]} 20... g4 {[%clk 0:00:25.3]} 21. Ng1
{[%clk 0:00:55.4]} 21... f5 {[%clk 0:00:23.5]} 22. d4 {[%clk 0:00:54.9]} 22...
cxd4 {[%clk 0:00:22.2]} 23. exd4 {[%clk 0:00:54.3]} 23... Nxd4 {[%clk
0:00:18.4]} 24. Qxd4 {[%clk 0:00:45.8]} 24... Nf3 {[%clk 0:00:18.3]} 25. Nxf3
{[%clk 0:00:45.6]} 25... gxf3 {[%clk 0:00:16.5]} 26. Bxf3 {[%clk 0:00:19.3]}
26... Bxd4 {[%clk 0:00:15.1]} 27. Be3 {[%clk 0:00:19.4]} 27... Bxe3 {[%clk
0:00:14.1]} 28. Rxe3 {[%clk 0:00:19.4]} 28... e5 {[%clk 0:00:14.5]} 29. Bd5
{[%clk 0:00:17.6]} 29... f4 {[%clk 0:00:12.9]} 30. Rb3 {[%clk 0:00:17.6]} 30...
b6 {[%clk 0:00:12.6]} 31. a4 {[%clk 0:00:15.2]} 31... fxg3 {[%clk 0:00:12.1]}
32. Rxg3 {[%clk 0:00:14.4]} 32... Rdf8 {[%clk 0:00:11.5]} 33. Rf3 {[%clk
0:00:12.3]} 33... Rxf3 {[%clk 0:00:07.8]} 34. Bxf3 {[%clk 0:00:12.1]} 34... Rf8
{[%clk 0:00:08.4]} 35. Ke2 {[%clk 0:00:10.8]} 35... Qf4 {[%clk 0:00:08.9]} 36.
Bd5 {[%clk 0:00:08]} 36... Qxf2+ {[%clk 0:00:08.1]} 37. Kd3 {[%clk 0:00:08.7]}
37... Qd4+ {[%clk 0:00:08.6]} 38. Kc2 {[%clk 0:00:08.5]} 38... Rf2+ {[%clk
0:00:08.7]} 39. Kc1 {[%clk 0:00:04.6]} 39... Qd2+ {[%clk 0:00:09]} 0-1